fUSD/lending_fUSD_20250219
["ID","MTS","AMOUNT","RATE_DAILY","PERIOD"]
[353606680,1739957059136,-777.31,0.00014438,2]
[353606681,1739957059170,-883.27,0.00014438,2]
[353606682,1739957059203,-500.0,0.00014438,2]
[353606683,1739957059237,-601.15,0.00014438,2]
[353606684,1739957059272,-516.48820761,0.00014438,2]
[353606685,1739957059306,-500.0,0.00014438,2]
[353606686,1739957059341,-653.11,0.00014438,2]
[353606687,1739957059376,-500.0,0.00014438,2]
[353606688,1739957059408,-777.33,0.00014438,2]
[353606689,1739957059441,-500.0,0.00014438,2]
[353606690,1739957059476,-523.08,0.00014438,2]
[353606691,1739957059507,-1044.61,0.00014438,2]
[353606692,1739957059540,-712.57,0.00014438,2]
[353606693,1739957059572,-540.46,0.00014438,2]
[353606694,1739957059605,-777.07,0.00014438,2]
[353606695,1739957059638,-687.05,0.00014438,2]
[353606696,1739957059670,-500.0,0.00014438,2]
[353606697,1739957059700,-879.81,0.00014438,2]
[353606698,1739957059736,-500.0,0.00014438,2]
[353606699,1739957059767,-525.83,0.00014438,2]
[353606700,1739957059797,-625.39,0.00014438,2]
[353606701,1739957059830,-888.05,0.00014438,2]
[353606702,1739957059867,-787.18,0.00014438,2]
[353606703,1739957059906,-500.0,0.00014438,2]
[353606704,1739957059940,-781.66,0.00014438,2]
[353606705,1739957059976,-532.61,0.00014438,2]
[353606706,1739957060009,-596.76,0.00014438,2]
[353606707,1739957060042,-536.22,0.00014438,2]
[353606708,1739957060075,-500.0,0.00014438,2]
[353606709,1739957060107,-500.0,0.00014438,2]
[353606710,1739957060138,-914.58,0.00014438,2]
[353606711,1739957060170,-500.0,0.00014438,2]
[353606712,1739957060200,-500.0,0.00014438,2]
[353606713,1739957060232,-657.0,0.00014438,2]
[353606714,1739957060266,-500.0,0.00014438,2]
[353606715,1739957060303,-727.68,0.00014438,2]
[353606716,1739957060343,-1554.06,0.00014438,2]
[353606717,1739957060378,-594.44,0.00014438,2]
[353606718,1739957060411,-520.07211211,0.00014438,2]
[353606719,1739957060445,-413.76399847,0.00014438,2]
[353606720,1739957060481,-1286.14,0.00014438,2]
[353606721,1739957060515,-539.19,0.00014438,2]
[353606722,1739957060549,-731.14,0.00014438,2]
[353606723,1739957060582,-523.74,0.00014438,2]
[353606724,1739957060616,-500.0,0.00014438,2]
[353606725,1739957060649,-1494.76,0.00014438,2]
[353606726,1739957060684,-500.0,0.00014438,2]
[353606727,1739957060718,-500.0,0.00014438,2]
[353606728,1739957060751,-656.29,0.00014438,2]
[353606729,1739957060786,-500.0,0.00014438,2]
[353606730,1739957060821,-500.0,0.00014438,2]
[353606731,1739957060857,-1380.28,0.00014438,2]
[353606732,1739957060896,-500.0,0.00014438,2]
[353606733,1739957060933,-500.0,0.00014438,2]
[353606734,1739957060973,-500.0,0.00014438,2]
[353606735,1739957061009,-500.0,0.00014438,2]
[353606736,1739957061045,-1469.68,0.00014438,2]
[353606737,1739957061080,-500.0,0.00014438,2]
[353606738,1739957061118,-500.0,0.00014438,2]
[353606739,1739957061153,-1629.48,0.00014438,2]
[353606740,1739957061188,-500.0,0.00014438,2]
[353606741,1739957061221,-506.69,0.00014438,2]
[353606742,1739957061255,-500.0,0.00014438,2]
[353606743,1739957061291,-1643.27,0.00014438,2]
[353606744,1739957061324,-500.0,0.00014438,2]
[353606745,1739957061356,-500.07,0.00014438,2]
[353606746,1739957061599,-1374.04,0.00014438,2]
[353606747,1739957061642,-500.0,0.00014438,2]
[353606748,1739957061677,-521.21158048,0.00014438,2]
[353606749,1739957061714,-500.0,0.00014438,2]
[353606750,1739957061750,-2880.46,0.00014438,2]
[353606751,1739957061784,-500.0,0.00014438,2]
[353606752,1739957061817,-500.0,0.00014438,2]
[353606753,1739957061851,-500.0,0.00014438,2]
[353606754,1739957061890,-500.0,0.00014438,2]
[353606755,1739957061926,-708.89,0.00014438,2]
[353606756,1739957061962,-1303.36,0.00014438,2]
[353606757,1739957061997,-500.0,0.00014438,2]
[353606758,1739957062031,-500.0,0.00014438,2]
[353606759,1739957062066,-626.2,0.00014438,2]
[353606760,1739957062100,-500.0,0.00014438,2]
[353606761,1739957062134,-500.0,0.00014438,2]
[353606762,1739957062167,-691.7,0.00014438,2]
[353606763,1739957062199,-500.0,0.00014438,2]
[353606764,1739957062230,-598.12,0.00014438,2]
[353606765,1739957062260,-500.0,0.00014438,2]
[353606766,1739957062291,-500.0,0.00014438,2]
[353606767,1739957062322,-500.0,0.00014438,2]
[353606768,1739957062353,-1590.92,0.00014438,2]
[353606769,1739957062384,-435.82878026,0.00014438,2]
[353606770,1739957062415,-629.55,0.00014438,2]
[353606771,1739957062445,-956.27,0.00014438,2]
[353606772,1739957062476,-500.0,0.00014438,2]
[353606773,1739957062507,-500.89,0.00014438,2]
[353606774,1739957062539,-500.0,0.00014438,2]
[353606775,1739957062568,-848.21,0.00014438,2]
[353606776,1739957062599,-500.0,0.00014438,2]
[353606777,1739957062630,-998.89,0.00014438,2]
[353606778,1739957062660,-512.78153656,0.00014438,2]
[353606779,1739957062690,-782.0,0.00014438,2]
[353606780,1739957062729,-500.0,0.00014438,2]
[353606781,1739957062765,-500.0,0.00014438,2]
[353606782,1739957062797,-840.54,0.00014438,2]
[353606783,1739957062830,-500.0,0.00014438,2]
[353606784,1739957062865,-632.82,0.00014438,2]
[353606785,1739957062899,-1192.42,0.00014438,2]
[353606786,1739957062933,-500.0,0.00014438,2]
[353606787,1739957062967,-500.0,0.00014438,2]
[353606788,1739957062999,-657.73,0.00014438,2]
[353606789,1739957063031,-500.0,0.00014438,2]
[353606790,1739957063063,-825.98,0.00014438,2]
[353606791,1739957063096,-648.938531,0.00014438,2]
[353606792,1739957063128,-1447.73,0.00014438,2]
[353606793,1739957063160,-500.0,0.00014438,2]
[353606794,1739957063194,-719.81,0.00014438,2]
[353606795,1739957063226,-500.0,0.00014438,2]
[353606796,1739957063259,-1285.19,0.00014438,2]
[353606797,1739957063292,-500.0,0.00014438,2]
[353606798,1739957063326,-500.0,0.00014438,2]
[353606799,1739957063359,-500.0,0.00014438,2]
[353606800,1739957063392,-2760.81,0.00014438,2]
[353606801,1739957063424,-500.0,0.00014438,2]
[353606802,1739957063457,-1429.12,0.00014438,2]
[353606803,1739957063490,-535.98,0.00014438,2]
[353606804,1739957063522,-1108.97,0.00014438,2]
[353606805,1739957063553,-560.79,0.00014438,2]
[353606806,1739957063587,-1725.34,0.00014438,2]
[353606807,1739957063619,-500.0,0.00014438,2]
[353606808,1739957063651,-583.25,0.00014438,2]
[353606809,1739957063684,-500.0,0.00014438,2]
[353606810,1739957063718,-783.42,0.00014438,2]
[353606811,1739957063751,-778.14,0.00014438,2]
[353606812,1739957063782,-500.0,0.00014438,2]
[353606813,1739957063814,-1078.1,0.00014438,2]
[353606814,1739957063847,-500.0,0.00014438,2]
[353606815,1739957063883,-2405.75,0.00014438,2]
[353606816,1739957063919,-5296.1,0.00014438,2]
[353606817,1739957063958,-2043.27,0.00014438,2]
[353606818,1739957063995,-1534.33,0.00014438,2]
[353606819,1739957064034,-500.0,0.00014438,2]
[353606820,1739957064070,-647.07,0.00014438,2]
[353606821,1739957064105,-500.0,0.00014438,2]
[353606822,1739957064142,-738.28,0.00014438,2]
[353606823,1739957064177,-1051.18,0.00014438,2]
[353606824,1739957064214,-500.0,0.00014438,2]
[353606825,1739957064249,-1093.24,0.00014438,2]
[353606826,1739957064284,-500.0,0.00014438,2]
[353606827,1739957064319,-1295.32,0.00014438,2]
[353606828,1739957064355,-2278.72,0.00014438,2]
[353606829,1739957064391,-500.0,0.00014438,2]
[353606830,1739957064425,-1455.08,0.00014438,2]
[353606831,1739957064460,-500.0,0.00014438,2]
[353606832,1739957064494,-500.0,0.00014438,2]
[353606833,1739957064528,-572.16,0.00014438,2]
[353606834,1739957064562,-929.06,0.00014438,2]
[353606835,1739957064595,-967.27,0.00014438,2]
[353606836,1739957064627,-1119.05,0.00014438,2]
[353606837,1739957064659,-500.0,0.00014438,2]
[353606838,1739957064690,-500.0,0.00014438,2]
[353606839,1739957064722,-500.0,0.00014438,2]
[353606840,1739957064755,-770.13,0.00014438,2]
[353606841,1739957064789,-500.0,0.00014438,2]
[353606842,1739957064824,-4255.25,0.00014438,2]
[353606843,1739957064862,-500.0,0.00014438,2]
[353606844,1739957064899,-1120.64,0.00014438,2]
[353606845,1739957064934,-500.0,0.00014438,2]
[353606846,1739957064972,-500.0,0.00014438,2]
[353606847,1739957065009,-1021.92,0.00014438,2]
[353606848,1739957065046,-680.04,0.00014438,2]
[353606849,1739957065080,-500.0,0.00014438,2]
[353606850,1739957065115,-500.0,0.00014438,2]
[353606851,1739957065155,-1015.43,0.00014438,2]
[353606852,1739957065190,-500.0,0.00014438,2]
[353606853,1739957065225,-500.0,0.00014438,2]
[353606854,1739957065259,-500.0,0.00014438,2]
[353606855,1739957065294,-524.92253881,0.00014438,2]
[353606856,1739957065329,-909.24,0.00014438,2]
[353606857,1739957065363,-626.42000713,0.00014438,2]
[353606858,1739957065398,-500.0,0.00014438,2]
[353606859,1739957065431,-500.0,0.00014438,2]
[353606860,1739957065467,-500.0,0.00014438,2]
[353606861,1739957065503,-500.0,0.00014438,2]
[353606862,1739957065538,-1252.15,0.00014438,2]
[353606863,1739957065572,-500.0,0.00014438,2]
[353606864,1739957065607,-724.82,0.00014438,2]
[353606865,1739957065641,-604.92,0.00014438,2]
[353606866,1739957065677,-855.46,0.00014438,2]
[353606867,1739957065712,-500.0,0.00014438,2]
[353606868,1739957065746,-736.01,0.00014438,2]
[353606869,1739957065780,-1283.84,0.00014438,2]
[353606870,1739957065814,-171.55,0.00014438,2]
[353606871,1739957065850,-500.0,0.00014438,2]
[353606872,1739957065891,-745.89,0.00014438,2]
[353606873,1739957065930,-1926.5,0.00014438,2]
[353606874,1739957065969,-1055.67,0.00014438,2]
[353606875,1739957066008,-627.81,0.00014438,2]
[353606876,1739957066045,-500.0,0.00014438,2]
[353606877,1739957066080,-776.57,0.00014438,2]
[353606878,1739957066113,-500.0,0.00014438,2]
[353606879,1739957066147,-733.08,0.00014438,2]
[353606880,1739957066181,-547.75,0.00014438,2]
[353606881,1739957066215,-500.0,0.00014438,2]
[353606882,1739957066247,-529.59,0.00014438,2]
[353606883,1739957066279,-4362.54,0.00014438,2]
[353606884,1739957066314,-500.0,0.00014438,2]
[353606885,1739957066348,-500.0,0.00014438,2]
[353606886,1739957066381,-500.0,0.00014438,2]
[353606887,1739957066416,-500.0,0.00014438,2]
[353606888,1739957066451,-691.67,0.00014438,2]
[353606889,1739957066486,-580.48,0.00014438,2]
[353606890,1739957066520,-1333.98,0.00014438,2]
[353606891,1739957066556,-2090.9,0.00014438,2]
[353606892,1739957066590,-823.1,0.00014438,2]
[353606893,1739957066623,-733.25,0.00014438,2]
[353606894,1739957066655,-552.5,0.00014438,2]
[353606895,1739957066687,-1331.05,0.00014438,2]
[353606896,1739957066936,-500.0,0.00014438,2]
[353606897,1739957066975,-150.99,0.00014504,2]
[353606898,1739957067009,-45096.07,0.00014504,2]
[353606899,1739957067044,-3932.08,0.00014504,2]
[353606900,1739957067079,-500.0,0.0001452,2]
[353606901,1739957067112,-543.01,0.0001452,2]
[353606902,1739957067145,-634.82,0.0001452,2]
[353606903,1739957067179,-500.0,0.0001452,2]
[353606904,1739957067213,-541.04,0.0001452,2]
[353606905,1739957067251,-500.0,0.0001452,2]
[353606906,1739957067286,-725.34,0.0001452,2]
[353606907,1739957067320,-778.48,0.0001452,2]
[353606908,1739957067353,-500.0,0.0001452,2]
[353606909,1739957067386,-500.0,0.0001452,2]
[353606910,1739957067419,-633.81,0.0001452,2]
[353606911,1739957067452,-562.62,0.0001452,2]
[353606912,1739957067485,-844.44,0.0001452,2]
[353606913,1739957067517,-500.0,0.0001452,2]
[353606914,1739957067549,-500.0,0.0001452,2]
[353606915,1739957067580,-500.0,0.0001452,2]
[353606916,1739957067611,-722.42,0.0001452,2]
[353606917,1739957067642,-510.18,0.0001452,2]
[353606918,1739957067674,-650.55,0.0001452,2]
[353606919,1739957067705,-500.0,0.0001452,2]
[353606920,1739957067736,-500.0,0.0001452,2]
[353606921,1739957067768,-500.0,0.0001452,2]
[353606922,1739957067801,-1055.45,0.0001452,2]
[353606923,1739957067834,-500.0,0.0001452,2]
[353606924,1739957067869,-500.0,0.0001452,2]
[353606925,1739957067905,-691.51,0.0001452,2]
[353606926,1739957067942,-909.51,0.0001452,2]
[353606927,1739957067978,-500.0,0.0001452,2]
[353606928,1739957068012,-667.83,0.0001452,2]
[353606929,1739957068046,-500.0,0.0001452,2]
[353606930,1739957068079,-531.54,0.0001452,2]
[353606931,1739957068113,-647.18,0.0001452,2]
[353606932,1739957068145,-500.0,0.0001452,2]
[353606933,1739957068176,-500.0,0.0001452,2]
[353606934,1739957068208,-930.4,0.0001452,2]
[353606935,1739957068239,-500.0,0.0001452,2]
[353606936,1739957068269,-625.34,0.0001452,2]
[353606937,1739957068301,-287.67945272,0.0001452,2]
[353606938,1739957068332,-515.28,0.0001452,2]
[353606939,1739957068361,-551.52,0.0001452,2]
[353606940,1739957068390,-500.0,0.0001452,2]
[353606941,1739957068419,-500.0,0.0001452,2]
[353606942,1739957068450,-500.0,0.0001452,2]
[353606943,1739957068480,-770.16,0.0001452,2]
[353606944,1739957068511,-500.0,0.0001452,2]
[353606945,1739957068540,-500.0,0.0001452,2]
[353606946,1739957068570,-500.0,0.0001452,2]
[353606947,1739957068600,-500.0,0.0001452,2]
[353606948,1739957068632,-500.0,0.0001452,2]
[353606949,1739957068664,-512.49,0.0001452,2]
[353606950,1739957068698,-533.08,0.0001452,2]
[353606951,1739957068730,-628.45,0.0001452,2]
[353606952,1739957068764,-743.05,0.0001452,2]
[353606953,1739957068797,-500.0,0.0001452,2]
[353606954,1739957068830,-1540.98,0.0001452,2]
[353606955,1739957068865,-545.22,0.0001452,2]
[353606956,1739957068901,-807.24,0.0001452,2]
[353606957,1739957068936,-514.11,0.0001452,2]
[353606958,1739957068971,-819.39,0.0001452,2]
[353606959,1739957069004,-572.21,0.0001452,2]
[353606960,1739957069035,-500.0,0.0001452,2]
[353606961,1739957069067,-649.94,0.0001452,2]
[353606962,1739957069099,-500.0,0.0001452,2]
[353606963,1739957069131,-500.0,0.0001452,2]
[353606964,1739957069164,-153.6800829,0.0001452,2]
[353606965,1739957069195,-500.0,0.0001452,2]
[353606966,1739957069226,-1211.58,0.0001452,2]
[353606967,1739957069256,-500.0,0.0001452,2]
[353606968,1739957069286,-1135.36,0.0001452,2]
[353606969,1739957069319,-500.0,0.0001452,2]
[353606970,1739957069350,-722.48,0.0001452,2]
[353606971,1739957069380,-500.0,0.0001452,2]
[353606972,1739957069413,-1272.14,0.0001452,2]
[353606973,1739957069447,-500.0,0.0001452,2]
[353606974,1739957069477,-500.0,0.0001452,2]
[353606975,1739957069508,-712.89,0.0001452,2]
[353606976,1739957069541,-500.0,0.0001452,2]
[353606977,1739957069573,-500.0,0.0001452,2]
[353606978,1739957069604,-862.66,0.0001452,2]
[353606979,1739957069635,-1233.72,0.0001452,2]
[353606980,1739957069665,-740.17,0.0001452,2]
[353606981,1739957069696,-758.66,0.0001452,2]
[353606982,1739957069725,-500.0,0.0001452,2]
[353606983,1739957069756,-601.16,0.0001452,2]
[353606984,1739957069786,-689.44,0.0001452,2]
[353606985,1739957069816,-593.48,0.0001452,2]
[353606986,1739957069848,-500.0,0.0001452,2]
[353606987,1739957069882,-774.93,0.0001452,2]
[353606988,1739957069915,-500.0,0.0001452,2]
[353606989,1739957069949,-1397.033156,0.0001452,2]
[353606990,1739957069983,-500.0,0.0001452,2]
[353606991,1739957070017,-1325.26,0.0001452,2]
[353606992,1739957070052,-500.0,0.0001452,2]
[353606993,1739957070084,-750.16,0.0001452,2]
[353606994,1739957070117,-500.0,0.0001452,2]
[353606995,1739957070147,-500.0,0.0001452,2]
[353606996,1739957070179,-1394.43,0.0001452,2]
[353606997,1739957070208,-500.0,0.0001452,2]
[353606998,1739957070240,-500.0,0.0001452,2]
[353606999,1739957070270,-500.0,0.0001452,2]
[353607000,1739957070304,-638.51,0.0001452,2]
[353607001,1739957070336,-500.0,0.0001452,2]
[353607002,1739957070368,-500.0,0.0001452,2]
[353607003,1739957070399,-500.0,0.0001452,2]
[353607004,1739957070430,-500.0,0.0001452,2]
[353607005,1739957070461,-916.97,0.0001452,2]
[353607006,1739957070492,-500.0,0.0001452,2]
[353607007,1739957070523,-571.77,0.0001452,2]
[353607008,1739957070554,-500.0,0.0001452,2]
[353607009,1739957070586,-535.59,0.0001452,2]
[353607010,1739957070617,-543.64,0.0001452,2]
[353607011,1739957070647,-646.22,0.0001452,2]
[353607012,1739957070678,-1263.66,0.0001452,2]
[353607013,1739957070708,-865.23,0.0001452,2]
[353607014,1739957070737,-592.33,0.0001452,2]
[353607015,1739957070768,-1825.346312,0.0001452,2]
[353607016,1739957070801,-646.68,0.0001452,2]
[353607017,1739957070831,-597.97,0.0001452,2]
[353607018,1739957070865,-694.2,0.0001452,2]
[353607019,1739957070898,-500.0,0.0001452,2]
[353607020,1739957070933,-168.10883249,0.0001452,2]
[353607021,1739957070968,-1174.15,0.0001452,2]
[353607022,1739957071000,-500.0,0.0001452,2]
[353607023,1739957071031,-878.0,0.0001452,2]
[353607024,1739957071061,-500.0,0.0001452,2]
[353607025,1739957071092,-825.52,0.0001452,2]
[353607026,1739957071123,-500.0,0.0001452,2]
[353607027,1739957071153,-500.0,0.0001452,2]
[353607028,1739957071184,-500.0,0.0001452,2]
[353607029,1739957071216,-500.0,0.0001452,2]
[353607030,1739957071247,-516.38,0.0001452,2]
[353607031,1739957071278,-262.32956849,0.0001452,2]
[353607032,1739957071312,-500.0,0.0001452,2]
[353607033,1739957071344,-1264.71,0.0001452,2]
[353607034,1739957071376,-906.18,0.0001452,2]
[353607035,1739957071408,-500.0,0.0001452,2]
[353607036,1739957071440,-565.96,0.0001452,2]
[353607037,1739957071473,-500.0,0.0001452,2]
[353607038,1739957071506,-988.21,0.0001452,2]
[353607039,1739957071538,-1121.54,0.0001452,2]
[353607040,1739957071569,-500.0,0.0001452,2]
[353607041,1739957071602,-500.52,0.0001452,2]
[353607042,1739957071633,-500.0,0.0001452,2]
[353607043,1739957071665,-500.0,0.0001452,2]
[353607044,1739957071698,-500.0,0.0001452,2]
[353607045,1739957071877,-1126.66,0.0001452,2]
[353607046,1739957071957,-628.69,0.0001452,2]
[353607047,1739957071993,-500.0,0.0001452,2]
[353607048,1739957072028,-500.0,0.0001452,2]
[353607049,1739957072061,-500.0,0.0001452,2]
[353607050,1739957072094,-427.24030299,0.0001452,2]
[353607051,1739957072124,-777.31,0.0001452,2]
[353607052,1739957072155,-883.27,0.0001452,2]
[353607053,1739957072186,-500.0,0.0001452,2]
[353607054,1739957072219,-601.15,0.0001452,2]
[353607055,1739957072248,-500.0,0.0001452,2]
[353607056,1739957072280,-653.11,0.0001452,2]
[353607057,1739957072312,-517.6307655,0.0001452,2]
[353607058,1739957072344,-777.33,0.0001452,2]
[353607059,1739957072376,-500.0,0.0001452,2]
[353607060,1739957072409,-523.08,0.0001452,2]
[353607061,1739957072442,-1044.61,0.0001452,2]
[353607062,1739957072477,-712.57,0.0001452,2]
[353607063,1739957072511,-540.46,0.0001452,2]
[353607064,1739957072543,-777.07,0.0001452,2]
[353607065,1739957072574,-687.05,0.0001452,2]
[353607066,1739957072604,-500.0,0.0001452,2]
[353607067,1739957072635,-879.81,0.0001452,2]
[353607068,1739957072665,-500.0,0.0001452,2]
[353607069,1739957072696,-525.83,0.0001452,2]
[353607070,1739957072728,-625.39,0.0001452,2]
[353607071,1739957072759,-888.05,0.0001452,2]
[353607072,1739957072792,-787.18,0.0001452,2]
[353607073,1739957072824,-500.0,0.0001452,2]
[353607074,1739957072858,-781.66,0.0001452,2]
[353607075,1739957072897,-532.61,0.0001452,2]
[353607076,1739957072933,-596.76,0.0001452,2]
[353607077,1739957072969,-536.22,0.0001452,2]
[353607078,1739957073004,-500.0,0.0001452,2]
[353607079,1739957073039,-500.0,0.0001452,2]
[353607080,1739957073075,-914.58,0.0001452,2]
[353607081,1739957073110,-500.0,0.0001452,2]
[353607082,1739957073145,-500.0,0.0001452,2]
[353607083,1739957073182,-657.0,0.0001452,2]
[353607084,1739957073217,-519.25704517,0.0001452,2]
[353607085,1739957073255,-727.68,0.0001452,2]
[353607086,1739957073291,-1554.06,0.0001452,2]
[353607087,1739957073329,-594.44,0.0001452,2]
[353607088,1739957073364,-1286.14,0.0001452,2]
[353607089,1739957073400,-539.19,0.0001452,2]
[353607090,1739957073434,-731.14,0.0001452,2]
[353607091,1739957073471,-523.74,0.0001452,2]
[353607092,1739957073508,-500.0,0.0001452,2]
[353607093,1739957073545,-1494.76,0.0001452,2]
[353607094,1739957073578,-500.0,0.0001452,2]
[353607095,1739957073614,-500.0,0.0001452,2]
[353607096,1739957073649,-656.29,0.0001452,2]
[353607097,1739957073683,-500.0,0.0001452,2]
[353607098,1739957073720,-500.0,0.0001452,2]
[353607099,1739957073756,-1380.28,0.0001452,2]
[353607100,1739957073792,-500.0,0.0001452,2]
[353607101,1739957073829,-500.0,0.0001452,2]
[353607102,1739957073865,-500.0,0.0001452,2]
[353607103,1739957073900,-500.0,0.0001452,2]
[353607104,1739957073937,-1469.68,0.0001452,2]
[353607105,1739957073976,-500.0,0.0001452,2]
[353607106,1739957074013,-500.0,0.0001452,2]
[353607107,1739957074048,-1629.48,0.0001452,2]
[353607108,1739957074083,-500.0,0.0001452,2]
[353607109,1739957074118,-506.69,0.0001452,2]
[353607110,1739957074152,-500.0,0.0001452,2]
[353607111,1739957074188,-1643.27,0.0001452,2]
[353607112,1739957074224,-500.0,0.0001452,2]
[353607113,1739957074262,-500.07,0.0001452,2]
[353607114,1739957074300,-1374.04,0.0001452,2]
[353607115,1739957074339,-500.0,0.0001452,2]
[353607116,1739957074377,-500.0,0.0001452,2]
[353607117,1739957074414,-2880.46,0.0001452,2]
[353607118,1739957074448,-500.0,0.0001452,2]
[353607119,1739957074482,-500.0,0.0001452,2]
[353607120,1739957074515,-379.70829572,0.0001452,2]
[353607121,1739957074548,-500.0,0.0001452,2]
[353607122,1739957074582,-708.89,0.0001452,2]
[353607123,1739957074615,-1303.36,0.0001452,2]
[353607124,1739957074648,-500.0,0.0001452,2]
[353607125,1739957074683,-500.0,0.0001452,2]
[353607126,1739957074718,-626.2,0.0001452,2]
[353607127,1739957074751,-500.0,0.0001452,2]
[353607128,1739957074783,-500.0,0.0001452,2]
[353607129,1739957074817,-691.7,0.0001452,2]
[353607130,1739957074849,-500.0,0.0001452,2]
[353607131,1739957074886,-598.12,0.0001452,2]
[353607132,1739957074923,-500.0,0.0001452,2]
[353607133,1739957074959,-500.0,0.0001452,2]
[353607134,1739957074992,-500.0,0.0001452,2]
[353607135,1739957075026,-1590.92,0.0001452,2]
[353607136,1739957075060,-629.55,0.0001452,2]
[353607137,1739957075093,-956.27,0.0001452,2]
[353607138,1739957075126,-500.0,0.0001452,2]
[353607139,1739957075157,-500.89,0.0001452,2]
[353607140,1739957075189,-500.0,0.0001452,2]
[353607141,1739957075222,-848.21,0.0001452,2]
[353607142,1739957075254,-500.0,0.0001452,2]
[353607143,1739957075288,-998.89,0.0001452,2]
[353607144,1739957075323,-782.0,0.0001452,2]
[353607145,1739957075357,-500.0,0.0001452,2]
[353607146,1739957075392,-500.0,0.0001452,2]
[353607147,1739957075426,-840.54,0.0001452,2]
[353607148,1739957075460,-500.0,0.0001452,2]
[353607149,1739957075493,-632.82,0.0001452,2]
[353607150,1739957075526,-1192.42,0.0001452,2]
[353607151,1739957075558,-500.0,0.0001452,2]
[353607152,1739957075589,-500.0,0.0001452,2]
[353607153,1739957075621,-657.73,0.0001452,2]
[353607154,1739957075652,-500.0,0.0001452,2]
[353607155,1739957075683,-825.98,0.0001452,2]
[353607156,1739957075715,-1447.73,0.0001452,2]
[353607157,1739957075746,-500.0,0.0001452,2]
[353607158,1739957075777,-719.81,0.0001452,2]
[353607159,1739957075809,-500.0,0.0001452,2]
[353607160,1739957075843,-1285.19,0.0001452,2]
[353607161,1739957075878,-500.0,0.0001452,2]
[353607162,1739957075912,-500.0,0.0001452,2]
[353607163,1739957075946,-500.0,0.0001452,2]
[353607164,1739957075983,-2760.81,0.0001452,2]
[353607165,1739957076017,-500.0,0.0001452,2]
[353607166,1739957076053,-1429.12,0.0001452,2]
[353607167,1739957076088,-535.98,0.0001452,2]
[353607168,1739957076123,-1108.97,0.0001452,2]
[353607169,1739957076156,-560.79,0.0001452,2]
[353607170,1739957076192,-1725.34,0.0001452,2]
[353607171,1739957076225,-500.0,0.0001452,2]
[353607172,1739957076258,-583.25,0.0001452,2]
[353607173,1739957076292,-500.0,0.0001452,2]
[353607174,1739957076327,-778.14,0.0001452,2]
[353607175,1739957076360,-500.0,0.0001452,2]
[353607176,1739957076392,-1078.1,0.0001452,2]
[353607177,1739957076424,-500.0,0.0001452,2]
[353607178,1739957076455,-2405.75,0.0001452,2]
[353607179,1739957076484,-783.42,0.0001452,2]